bitfinex/quotes_ETHUSD_20250328
["timestamp","ask_amount","ask_price","bid_price","bid_amount"]
[1743143401135,10.36936,1928.8,1928.5,0.45680271]
[1743143401339,10.36936,1928.8,1928.5,4.3059678]
[1743143401762,5.18485,1928.7,1928.5,4.3059678]
[1743143401963,0.55,1928.9,1928.6,3.77632805]
[1743143402166,0.55,1928.9,1928.7,0.45680271]
[1743143402462,0.55,1928.9,1928.7,1.10377747]
[1743143402654,0.55,1928.9,1928.8,3.32252534]
[1743143403061,0.55,1928.9,1928.8,3.37436543]
[1743143403769,0.55,1928.9,1928.8,3.32252534]
[1743143404341,0.55,1928.9,1928.8,17.82252534]
[1743143404541,0.55,1928.9,1928.8,19.71515562]
[1743143405836,0.55,1928.9,1928.8,20.17195833]
[1743143406247,0.55,1928.9,1928.8,5.67195833]
[1743143406448,5.7343,1928.9,1928.8,3.00792805]
[1743143406737,5.7343,1928.9,1928.8,0.45680271]
[1743143407847,6.5341,1928.9,1928.8,0.45680271]
[1743143408251,9.5341,1928.9,1928.8,0.45680271]
[1743143408596,5.18537,1928.5,1928.4,29.92]
[1743143408745,8.53199534,1928.5,1928.4,29.92]
[1743143409146,5.18564,1928.4,1928.3,2.71e-06]
[1743143409344,6.55740353,1928.4,1928.3,2.71e-06]
[1743143409753,9.87282887,1928.4,1928.3,2.71e-06]
[1743143409939,12.87282887,1928.4,1928.3,2.71e-06]
[1743143410146,12.87282887,1928.4,1927.8,2.71e-06]
[1743143410147,5.18699,1927.9,1927.8,2.71e-06]
[1743143410655,5.1868,1928.0,1927.8,2.71e-06]
[1743143411239,5.18699,1927.9,1927.8,2.71e-06]
[1743143412184,5.97199,1927.9,1927.8,2.71e-06]
[1743143412481,5.18699,1927.9,1927.8,2.71e-06]
[1743143412857,5.1868,1928.0,1927.8,2.71e-06]
[1743143413058,5.1868,1928.0,1927.9,2.55112534]
[1743143413257,5.18639,1928.2,1927.9,2.81142797]
[1743143413462,0.7732,1928.3,1928.1,2.55112534]
[1743143413463,10.37203,1928.3,1928.1,2.55112534]
[1743143413658,10.37203,1928.3,1928.2,14.50000271]
[1743143413861,5.18597,1928.3,1928.2,14.50000271]
[1743143414465,5.18591,1928.3,1928.2,14.50000271]
[1743143414868,5.18566,1928.4,1928.2,2.71e-06]
[1743143414869,10.37152,1928.4,1928.2,2.71e-06]
[1743143415672,5.18591,1928.3,1928.2,2.71e-06]
[1743143416462,5.18566,1928.4,1928.2,2.71e-06]
[1743143416663,10.37152,1928.4,1928.2,2.71e-06]
[1743143416980,5.18533,1928.6,1928.2,0.26030132]
[1743143417163,5.18481,1928.8,1928.4,3.37002534]
[1743143417372,5.18498,1928.7,1928.5,2.71e-06]
[1743143417674,5.1847,1928.8,1928.5,14.50000271]
[1743143418483,5.185,1928.7,1928.5,14.50000271]
[1743143418788,5.1847,1928.8,1928.6,2.55112534]
[1743143418965,5.18469,1928.8,1928.6,2.55112534]
[1743143419491,10.36941,1928.8,1928.6,2.55112534]
[1743143419660,5.18469,1928.8,1928.6,17.05112534]
[1743143419862,5.18483,1928.7,1928.6,17.05112534]
[1743143420164,5.18483,1928.7,1928.6,14.5]
[1743143420494,5.18483,1928.7,1928.6,14.50000271]
[1743143421391,5.18483,1928.7,1928.6,2.71e-06]
[1743143421568,12.57480734,1928.7,1928.6,2.71e-06]
[1743143421896,10.023682,1928.7,1928.6,2.71e-06]
[1743143422195,7.023682,1928.7,1928.6,2.71e-06]
[1743143425060,10.023682,1928.7,1928.6,2.71e-06]
[1743143431813,5.18537,1928.5,1928.4,2.71e-06]
[1743143432011,6.222426,1928.5,1928.4,2.71e-06]
[1743143434027,6.33069045,1928.5,1928.4,2.71e-06]
[1743143434517,7.14429045,1928.5,1928.4,2.71e-06]
[1743143434719,10.69429045,1928.5,1928.4,2.71e-06]
[1743143434919,9.01778,1928.2,1928.1,29.918]
[1743143435087,12.57811139,1928.2,1928.1,29.918]
[1743143435720,13.12811139,1928.2,1928.1,29.918]
[1743143436012,8.18672,1928.0,1927.9,2.71e-06]
[1743143436415,5.29292109,1928.0,1927.9,2.71e-06]
[1743143440722,6.3408662,1928.0,1927.9,2.71e-06]
[1743143441296,5.29292109,1928.0,1927.9,2.71e-06]
[1743143446325,5.29292109,1928.0,1927.9,0.82930271]
[1743143446927,5.29292109,1928.0,1927.9,2.71e-06]
[1743143449129,5.24292109,1928.0,1927.9,2.71e-06]
[1743143450932,0.10619838,1928.0,1927.9,0.82716647]
[1743143451135,0.10619838,1928.0,1927.9,13.11598565]
[1743143451437,5.18548,1928.5,1928.1,0.7805]
[1743143451731,5.18548,1928.5,1928.3,0.7585]
[1743143451923,5.18548,1928.5,1928.4,29.926]
[1743143452122,5.18548,1928.5,1928.4,32.99445]
[1743143453034,5.18548,1928.5,1928.4,29.926]
[1743143454304,5.18548,1928.5,1928.4,44.426]
[1743143454717,5.18548,1928.5,1928.4,29.926]
[1743143460713,5.98178,1928.5,1928.4,35.956]
[1743143461116,9.62917735,1928.5,1928.4,6.03]
[1743143461319,11.36574362,1928.5,1928.4,6.03]
[1743143461729,5.94078,1928.2,1928.1,6.03]
[1743143461930,17.35290534,1928.2,1928.1,6.03]
[1743143462129,5.94159,1927.9,1927.8,6.03]
[1743143462325,8.59111761,1927.9,1927.8,6.03]
[1743143462522,9.96890337,1927.9,1927.8,6.03]
[1743143464150,9.96890337,1927.9,1927.7,29.921]
[1743143464151,8.18726,1927.8,1927.7,29.921]
[1743143464349,8.98179,1927.6,1927.5,6.03]
[1743143464557,11.53291534,1927.6,1927.5,6.03]
[1743143467630,8.9712,1927.3,1927.2,6.03]
[1743143467862,8.9712,1927.3,1927.0,29.923]
[1743143467863,8.18914,1927.1,1927.0,29.923]
[1743143468023,11.52646534,1927.1,1927.0,29.923]
[1743143468426,11.52646534,1927.1,1926.8,6.03]
[1743143468427,5.18968,1926.9,1926.8,6.03]
[1743143468750,7.74080534,1926.9,1926.8,6.03]
[1743143469325,6.48270953,1926.9,1926.8,6.03]
[1743143469522,5.18968,1926.9,1926.8,6.03]
[1743143469823,7.74080534,1926.9,1926.8,6.03]
[1743143471070,10.74080534,1926.9,1926.8,6.03]
[1743143471432,11.54440534,1926.9,1926.8,6.03]
[1743143472458,5.19076,1926.5,1926.4,6.03]
[1743143474428,7.74188534,1926.5,1926.4,6.03]
[1743143474757,5.19076,1926.5,1926.4,6.03]
[1743143475639,9.59441734,1926.5,1926.4,6.03]
[1743143476251,6.228892,1926.5,1926.4,6.03]
[1743143477162,8.78001734,1926.5,1926.4,6.03]
[1743143477657,11.78001734,1926.5,1926.4,6.03]
[1743143482261,12.58441734,1926.5,1926.4,6.03]
[1743143487068,15.68554268,1926.5,1926.4,6.03]
[1743143487566,13.13441734,1926.5,1926.4,6.03]
[1743143487969,5.99826,1926.2,1926.1,6.41e-06]
[1743143488173,14.97934934,1926.2,1926.1,6.41e-06]
[1743143489042,18.52934934,1926.2,1926.1,6.41e-06]
[1743143489967,18.52934934,1926.2,1925.5,6.03]
[1743143489968,6.02488,1925.6,1925.5,6.03]
[1743143490187,17.12159118,1925.6,1925.5,6.03]
[1743143490369,16.05430534,1925.6,1925.5,6.03]
[1743143491159,13.50318,1925.6,1925.5,6.03]
[1743143491369,16.05430534,1925.6,1925.5,6.03]
[1743143498195,13.05430534,1925.6,1925.5,6.03]
[1743143498481,14.87903587,1925.6,1925.5,6.03]
[1743143498783,1.82473053,1925.6,1925.5,6.03]
[1743143498955,7.74378534,1925.8,1925.5,6.03]
[1743143499376,5.19292,1925.7,1925.5,6.03]
[1743143499578,7.74382534,1925.8,1925.5,6.03]
[1743143499777,2.55112534,1925.6,1925.5,6.03]
[1743143500193,5.55112534,1925.8,1925.5,6.03]
[1743143500485,5.19211,1926.0,1925.6,0.8158]
[1743143500676,5.19211,1926.0,1925.7,6.03]
[1743143501277,7.74310534,1926.1,1925.8,0.791]
[1743143501796,1.118964,1926.2,1925.9,6.03]
[1743143501998,7.74295534,1926.1,1925.9,6.03]
[1743143502191,5.1921,1926.0,1925.9,6.03]
[1743143503176,8.51731087,1926.1,1925.9,6.03]
[1743143503382,7.74301534,1926.1,1925.9,6.03]
[1743143504102,5.19189,1926.1,1925.9,6.03]
[1743143505489,5.19157,1926.2,1926.1,0.8142]
[1743143505799,5.19157,1926.2,1926.1,6.8442]
[1743143509681,6.75982052,1928.1,1926.1,6.71442]
[1743143509682,5.18991,1926.9,1926.1,6.71442]
[1743143509893,5.19088,1926.5,1926.2,6.83280973]
[1743143510103,5.19088,1926.5,1926.4,0.7509]
[1743143510404,5.19051,1926.6,1926.4,0.7509]
[1743143510792,5.19076,1926.5,1926.4,0.7509]
[1743143510998,5.19051,1926.6,1926.4,0.7509]
[1743143511307,5.19036,1926.7,1926.6,0.7797]
[1743143511603,5.19036,1926.7,1926.6,6.8097]
[1743143511902,5.18972,1926.9,1926.6,6.8097]
[1743143512101,5.18972,1926.9,1926.7,0.83159875]
[1743143512300,5.18972,1926.9,1926.7,0.7797]
[1743143512717,5.18926,1927.1,1926.9,0.7952]
[1743143512904,5.18911,1927.2,1926.9,0.7952]
[1743143512905,5.18911,1927.2,1927.0,6.03]
[1743143513205,10.37799,1927.2,1927.0,6.03]
[1743143513393,5.18899,1927.2,1927.0,6.03]
[1743143513595,10.37742,1927.3,1927.1,0.7952]
[1743143514701,7.73939534,1927.5,1927.1,0.84708555]
[1743143514908,7.73939534,1927.5,1927.2,6.03]
[1743143514909,10.73934534,1927.5,1927.2,6.03]
[1743143515107,5.18858,1927.4,1927.2,6.03]
[1743143515277,5.1886,1927.3,1927.2,6.03]
[1743143520515,8.77744334,1927.3,1927.2,6.03]
[1743143522190,11.77744334,1927.3,1927.2,6.03]
[1743143522617,12.60234334,1927.3,1927.2,6.03]
[1743143523409,18.45434334,1927.3,1927.2,6.03]
[1743143523609,5.95841,1927.0,1926.9,6.03]
[1743143523816,8.50953534,1927.0,1926.9,6.03]
[1743143524188,7.74053534,1927.0,1926.9,6.03]
[1743143524829,5.18941,1927.0,1926.9,6.8382]
[1743143525121,5.18941,1927.0,1926.9,10.51772]
[1743143525489,5.18922,1927.1,1926.9,25.01772]
[1743143525690,5.18921,1927.1,1926.9,25.01772]
[1743143527033,5.18941,1927.0,1926.9,6.8382]
[1743143527608,5.18941,1927.0,1926.9,6.03]
[1743143532825,5.18941,1927.0,1926.9,6.8301]
[1743143533419,5.18921,1927.1,1926.9,6.8301]
[1743143533724,10.37854,1927.1,1926.9,6.8301]
[1743143533924,5.18921,1927.1,1926.9,6.8301]
[1743143534223,10.37849,1927.1,1926.9,6.8301]
[1743143534428,10.37846,1927.1,1926.9,6.8301]
[1743143534624,5.18921,1927.1,1926.9,6.8301]
[1743143534800,5.18941,1927.0,1926.9,21.3301]
[1743143535425,5.18921,1927.1,1926.9,23.46311]
[1743143535923,10.37848,1927.1,1926.9,23.46311]
[1743143536123,5.18941,1927.0,1926.9,23.46311]
[1743143536517,5.18921,1927.1,1926.9,23.46311]
[1743143536717,3.55,1927.6,1926.9,22.66301]
[1743143536718,5.18893,1927.2,1926.9,22.66301]
[1743143536906,5.18893,1927.2,1927.0,2.9111273]
[1743143537105,5.18861,1927.3,1927.0,2.9111273]
[1743143537734,5.189,1927.2,1927.0,2.9111273]
[1743143538231,5.18861,1927.3,1927.1,6.03]
[1743143538427,5.18887,1927.2,1927.1,6.03]
[1743143540043,5.818625,1927.2,1927.1,6.03]
[1743143540946,5.18887,1927.2,1927.1,6.03]
[1743143547113,2.55112534,1927.4,1927.1,6.03]
[1743143547114,5.18852,1927.4,1927.1,6.03]
[1743143547319,5.18874,1927.3,1927.2,6.8012]
[1743143547754,5.18874,1927.3,1927.2,21.3012]
[1743143548951,5.18874,1927.3,1927.2,6.8012]
[1743143549316,5.18874,1927.3,1927.2,6.03]
[1743143549747,5.18874,1927.3,1927.0,6.03]
[1743143549748,5.18914,1927.1,1927.0,6.03]
[1743143549961,9.05136534,1927.1,1927.0,6.03]
[1743143550169,12.05136534,1927.1,1927.0,6.03]
[1743143550465,5.19076,1926.5,1926.4,6.03]
[1743143552049,5.19076,1926.5,1926.4,6.7823]
[1743143552352,5.19065,1926.6,1926.4,6.7823]
[1743143552554,5.19065,1926.6,1926.5,6.03]
[1743143553722,5.96445,1926.6,1926.5,6.03]
[1743143553938,8.51557534,1926.6,1926.5,6.03]
[1743143554132,12.88615487,1926.6,1926.5,6.03]
[1743143554355,10.33502953,1926.6,1926.5,6.03]
[1743143554575,5.19065,1926.6,1926.5,6.03]
[1743143554776,5.19022,1926.7,1926.5,6.03]
[1743143555052,5.19022,1926.7,1926.6,6.7907]
[1743143555421,5.18933,1927.1,1926.6,13.77142534]
[1743143555750,5.18956,1927.0,1926.7,6.7907]
[1743143555951,5.18956,1927.0,1926.8,0.67907]
[1743143556641,5.18968,1926.9,1926.8,0.67907]
[1743143556845,5.18995,1926.8,1926.7,6.7907]
[1743143557058,5.18995,1926.8,1926.7,36.7347]
[1743143557230,5.18968,1926.9,1926.7,36.7347]
[1743143557631,5.18947,1927.0,1926.7,36.7347]
[1743143558831,10.37901,1927.0,1926.7,36.7347]
[1743143559067,5.18947,1927.0,1926.8,3.72536355]
[1743143559267,5.18899,1927.2,1926.9,0.8034]
[1743143559469,5.18915,1927.1,1926.9,0.8034]
[1743143560165,5.18941,1927.0,1926.9,0.8034]
[1743143560372,5.18968,1926.9,1926.8,6.03]
[1743143562347,5.18968,1926.9,1926.8,9.70975]
[1743143562560,15.18941,1927.0,1926.8,9.70975]
[1743143562770,10.0,1927.0,1926.9,0.7585]
[1743143563123,10.0,1927.0,1926.9,0.81039102]
[1743143563523,10.0,1927.0,1926.9,0.7585]
[1743143563728,10.0,1927.0,1926.9,9.74581544]
[1743143563949,10.0,1927.0,1926.9,24.27251544]
[1743143564156,3.97,1927.0,1926.9,30.25062441]
[1743143565461,3.97,1927.0,1926.9,22.50981907]
[1743143565962,3.97,1927.0,1926.9,27.69949907]
[1743143566256,3.97,1927.0,1926.9,30.25062441]
[1743143569337,3.97,1927.0,1926.9,55.75549041]
[1743143569538,3.97,1927.0,1926.9,39.09362441]
[1743143571253,3.97,1927.0,1926.9,38.54362441]
[1743143572983,5.18766,1927.7,1927.3,5.18848]
[1743143573283,5.23702,1927.9,1927.5,8.49258534]
[1743143573641,5.23702,1927.9,1927.5,22.99258534]
[1743143573872,10.42416,1927.9,1927.5,22.99258534]
[1743143574173,5.18729,1927.8,1927.5,17.80462534]
[1743143575271,5.18729,1927.8,1927.6,2.06]
[1743143575474,5.18729,1927.8,1927.7,29.935]
[1743143575639,5.18729,1927.8,1927.7,31.995]
[1743143575843,5.23702,1927.9,1927.7,31.995]
[1743143576251,0.05,1927.9,1927.7,35.155902]
[1743143577390,5.237,1927.9,1927.7,35.155902]
[1743143578088,5.18726,1927.8,1927.7,31.995]
[1743143582695,5.95636,1927.8,1927.7,31.995]
[1743143583001,8.95636,1927.8,1927.7,29.935]
[1743143583687,5.94889,1927.6,1927.5,2.06]
[1743143584038,9.61366534,1927.6,1927.5,2.06]
[1743143586875,5.18779,1927.6,1927.5,2.06]
[1743143587203,5.18779,1927.6,1927.5,2.8744]
[1743143587607,5.18753,1927.7,1927.5,2.8744]
[1743143587901,5.18726,1927.8,1927.5,2.8744]
[1743143588070,10.37466,1927.8,1927.5,2.8744]
[1743143588273,5.18726,1927.8,1927.6,0.28744]
[1743143588472,5.18726,1927.8,1927.7,2.06]
[1743143595118,5.18726,1927.8,1927.5,29.933]
[1743143595119,6.01409,1927.6,1927.5,29.933]
[1743143595288,8.56521534,1927.6,1927.5,29.933]
[1743143597580,6.01409,1927.6,1927.5,29.933]
[1743143598509,8.56521534,1927.6,1927.5,29.933]
[1743143598679,10.24049787,1927.6,1927.5,29.933]
[1743143599095,7.68937253,1927.6,1927.5,29.933]
[1743143599280,6.01409,1927.6,1927.5,29.933]
[1743143599499,5.18779,1927.6,1927.5,29.933]
[1743143599900,5.18751,1927.8,1927.5,29.933]
[1743143600215,10.37497,1927.8,1927.6,0.7796]
[1743143600413,5.18746,1927.8,1927.6,0.7796]
[1743143600720,5.18746,1927.8,1927.6,3.85086]
[1743143601080,5.18752,1927.7,1927.6,3.85086]
[1743143601712,5.18746,1927.8,1927.6,3.85086]
[1743143602179,5.18746,1927.8,1927.7,2.06]
[1743143603316,0.05,1927.9,1927.7,4.61112534]
[1743143603506,0.05,1927.9,1927.8,0.46111253]
[1743143603818,0.05,1927.9,1927.8,3.77783787]
[1743143605323,0.05,1927.9,1927.8,4.22795613]
[1743143605821,0.05,1927.9,1927.8,9.41521613]
[1743143606119,0.05,1927.9,1927.8,11.42335278]
[1743143608325,0.05,1927.9,1927.8,12.44919634]
[1743143608491,0.05,1927.9,1927.8,6.23609278]
[1743143608689,5.23699,1927.9,1927.8,3.28671253]
[1743143608926,5.23699,1927.9,1927.8,2.06]
[1743143609221,7.78811534,1927.9,1927.8,2.06]
[1743143609528,8.60121534,1927.9,1927.8,2.06]
[1743143611820,5.18806,1927.5,1927.4,2.06]
[1743143612020,6.00206,1927.5,1927.4,2.06]
[1743143613695,8.55318534,1927.5,1927.4,2.06]
[1743143614255,6.00206,1927.5,1927.4,2.06]
[1743143616441,9.92729187,1927.5,1927.4,2.06]
[1743143617038,5.18833,1927.4,1927.3,29.928]
[1743143617209,7.73945534,1927.4,1927.3,29.928]
[1743143618157,11.49665534,1927.4,1927.3,29.928]
[1743143619838,12.04665534,1927.4,1927.3,29.928]
[1743143620034,13.90753753,1927.4,1927.3,29.928]
[1743143620545,6.00804,1927.1,1927.0,2.06]
[1743143621144,9.00804,1927.1,1927.0,2.06]
[1743143621348,9.00804,1927.1,1926.6,29.935]
[1743143621349,5.97985,1926.8,1926.7,2.06]
[1743143621523,8.53097534,1926.8,1926.7,2.06]
[1743143622743,5.97985,1926.8,1926.7,2.06]
[1743143623716,11.53097534,1926.8,1926.7,2.06]
[1743143623918,13.73134887,1926.8,1926.7,2.06]
[1743143624441,11.53097534,1926.8,1926.7,2.06]
[1743143625842,5.19022,1926.7,1926.6,29.935]
[1743143627222,8.19022,1926.7,1926.6,29.935]
[1743143628450,5.19022,1926.7,1926.6,29.935]
[1743143628750,5.19022,1926.7,1926.6,31.995]
[1743143628955,5.19022,1926.7,1926.6,35.27338]
[1743143630334,5.19022,1926.7,1926.6,31.995]
[1743143633054,5.18972,1926.9,1926.7,0.7886]
[1743143633356,5.18995,1926.8,1926.7,0.7886]
[1743143634660,5.18995,1926.8,1926.7,2.8486]
[1743143636058,5.18995,1926.8,1926.7,2.06]
[1743143637958,5.18972,1926.9,1926.7,5.33926]
[1743143638153,5.18972,1926.9,1926.7,5.39115688]
[1743143638358,5.18908,1927.2,1926.9,0.7989]
[1743143638662,13.46911,1927.5,1927.0,16.56]
[1743143638843,5.18906,1927.2,1927.0,16.56]
[1743143639044,5.18906,1927.2,1927.0,18.15510907]
[1743143639432,5.18903,1927.2,1927.0,18.15510907]
[1743143639831,5.18914,1927.1,1927.0,16.56]
[1743143640145,5.18914,1927.1,1927.0,2.06]
[1743143640864,7.74026534,1927.1,1927.0,2.06]
[1743143641952,5.18995,1926.8,1926.7,2.06]
[1743143645481,5.18995,1926.8,1926.7,16.56]
[1743143645667,5.18995,1926.8,1926.7,2.06]
[1743143648978,5.95715,1926.8,1926.7,2.06]
[1743143649372,7.32695453,1926.8,1926.7,2.06]
[1743143652201,5.19022,1926.7,1926.6,29.935]
[1743143652804,5.19022,1926.7,1926.6,44.435]
[1743143653163,5.18996,1926.8,1926.6,44.435]
[1743143653507,5.1897,1926.9,1926.7,0.7508]
[1743143653802,5.1897,1926.9,1926.8,14.5]
[1743143654001,5.1897,1926.9,1926.8,16.02508]
[1743143654168,5.1897,1926.9,1926.8,1.52508]
[1743143654364,5.18995,1926.8,1926.7,0.7508]
[1743143654569,5.18995,1926.8,1926.7,15.2508]
[1743143654772,5.1897,1926.9,1926.7,15.2508]
[1743143656268,5.18995,1926.8,1926.7,15.2508]
[1743143657969,5.18995,1926.8,1926.7,17.3108]
[1743143658179,5.18969,1926.9,1926.7,17.3108]
[1743143658375,10.37959,1926.9,1926.7,17.3108]
[1743143658575,5.18942,1927.0,1926.7,17.3108]
[1743143658782,5.18971,1926.9,1926.7,17.3108]
[1743143658975,5.18995,1926.8,1926.7,17.3108]
[1743143659212,5.18995,1926.8,1926.7,2.06]
[1743143661006,5.18977,1926.9,1926.7,2.06]
[1743143661304,5.18968,1926.9,1926.8,0.8014]
[1743143661507,5.18941,1927.0,1926.8,2.8614]
[1743143661693,5.55112534,1927.4,1926.8,2.8614]
[1743143661873,5.18954,1927.0,1926.9,2.11188754]
[1743143662076,5.18954,1927.0,1926.9,2.06]
[1743143667585,5.18892,1927.2,1927.0,0.7942]
[1743143667788,5.18881,1927.3,1927.0,0.7942]
[1743143668292,5.18881,1927.3,1927.1,14.5]
[1743143668491,5.18881,1927.3,1927.1,16.02942]
[1743143668798,5.18872,1927.3,1927.1,16.02942]
[1743143670619,5.18834,1927.4,1927.1,16.02942]
[1743143670620,5.18839,1927.4,1927.1,16.02942]
[1743143670825,10.37638,1927.5,1927.3,0.8226]
[1743143671321,10.37638,1927.5,1927.3,1.11086]
[1743143671618,5.18833,1927.4,1927.3,1.11086]
[1743143671924,5.18833,1927.4,1927.3,0.8226]
[1743143672123,5.1886,1927.3,1927.2,2.06]
[1743143673011,5.18833,1927.4,1927.2,2.06]
[1743143673388,5.18816,1927.5,1927.2,2.06]
[1743143673608,5.18781,1927.6,1927.3,0.7632]
[1743143673823,10.37585,1927.6,1927.3,0.7632]
[1743143673998,5.18781,1927.6,1927.3,0.7632]
[1743143674195,5.18781,1927.6,1927.3,15.2632]
[1743143674591,5.1876,1927.7,1927.4,1.57819727]
[1743143674797,5.18728,1927.8,1927.5,0.7563]
[1743143675006,5.18728,1927.8,1927.6,32.0]
[1743143675213,5.18728,1927.8,1927.6,46.5]
[1743143677635,5.18728,1927.8,1927.6,32.0]
[1743143677810,5.18728,1927.8,1927.6,35.34804907]
[1743143679135,5.18752,1927.7,1927.6,35.34804907]
[1743143680027,5.18728,1927.8,1927.6,35.34804907]
[1743143680999,5.18752,1927.7,1927.6,35.34804907]
[1743143682225,5.18728,1927.8,1927.6,35.34804907]
[1743143682432,5.18728,1927.8,1927.7,1.52632]
[1743143684315,5.23699,1927.9,1927.7,1.52632]
[1743143684509,0.05,1927.9,1927.7,4.12931536]
[1743143684718,0.05,1927.9,1927.8,7.24726]
[1743143684915,0.05,1927.9,1927.8,9.19991754]
[1743143686742,0.05,1927.9,1927.8,4.01265754]
[1743143687045,0.05,1927.9,1927.8,2.875]
[1743143687207,0.05,1927.9,1927.8,3.26720779]
[1743143690002,0.05,1927.9,1927.8,5.87019637]
[1743143690337,0.05,1927.9,1927.8,5.81833313]
[1743143690751,0.05,1927.9,1927.8,5.87019635]
[1743143690954,0.05,1927.9,1927.8,7.07673476]
[1743143691639,0.05,1927.9,1927.8,7.12859797]
[1743143692150,0.05,1927.9,1927.8,12.31585797]
[1743143692315,0.05,1927.9,1927.8,12.26399476]
[1743143696224,5.18621,1928.2,1927.9,2.01]
[1743143696424,5.18601,1928.3,1927.9,7.19698]
[1743143696722,5.18601,1928.3,1928.0,0.719698]
[1743143697147,5.18565,1928.4,1928.0,0.719698]
[1743143697148,5.18565,1928.4,1928.1,0.7779]
[1743143698263,5.18565,1928.4,1928.2,29.925]
[1743143698753,10.37086,1928.5,1928.2,29.925]
[1743143699050,5.18566,1928.4,1928.2,29.925]
[1743143699230,5.18566,1928.4,1928.3,1.36994944]
[1743143699430,5.18566,1928.4,1928.3,3.37994944]
[1743143700452,5.96352,1928.6,1928.3,3.37994944]
[1743143700453,5.18543,1928.5,1928.3,3.37994944]
[1743143700754,5.18564,1928.4,1928.3,3.43180266]
[1743143700955,5.18564,1928.4,1928.3,3.37994944]
[1743143701523,5.98774,1928.4,1928.3,2.01]
[1743143705259,5.18564,1928.4,1928.3,2.01]
[1743143707834,5.93924,1928.4,1928.3,2.01]
[1743143710290,5.18543,1928.5,1928.3,2.8088]
[1743143710291,10.37102,1928.5,1928.3,2.8088]
[1743143710664,5.18543,1928.5,1928.3,2.8088]
[1743143710866,5.18543,1928.5,1928.4,2.01]
[1743143711465,5.95243,1928.5,1928.4,2.01]
[1743143711819,8.95243,1928.5,1928.4,2.01]
[1743143713805,14.21643,1928.5,1928.4,2.01]
[1743143714172,14.76643,1928.5,1928.4,2.01]
[1743143714385,17.01669653,1928.5,1928.4,2.01]
[1743143716085,5.99622,1928.0,1927.9,29.923]
[1743143716274,16.81034534,1928.0,1927.9,29.923]
[1743143716475,17.36034534,1928.0,1927.9,29.923]
[1743143716671,5.18752,1927.7,1927.6,2.01]
[1743143716925,5.9498,1927.3,1927.2,31.932]
[1743143717073,8.50092534,1927.3,1927.2,31.932]
[1743143717594,5.1886,1927.3,1927.2,31.932]
[1743143718319,5.1886,1927.3,1927.2,35.1252]
[1743143718619,5.18842,1927.4,1927.2,35.9175]
[1743143718914,5.1886,1927.3,1927.2,35.9175]
[1743143719787,5.1886,1927.3,1927.2,31.932]
[1743143721411,5.18842,1927.4,1927.2,31.932]
[1743143722400,10.37697,1927.4,1927.2,31.932]
[1743143722599,5.18842,1927.4,1927.3,2.01]
[1743143723516,5.18784,1927.6,1927.4,0.8128]
[1743143723679,5.18784,1927.6,1927.4,1.09508]
[1743143724085,5.18806,1927.5,1927.4,1.09508]
[1743143724310,5.18806,1927.5,1927.4,0.28228]
[1743143726416,5.18806,1927.5,1927.3,2.01]
[1743143726594,5.18833,1927.4,1927.3,2.01]
[1743143728385,5.1878,1927.6,1927.3,2.01]
[1743143728614,5.18808,1927.5,1927.4,0.7593]
[1743143728812,5.18786,1927.6,1927.4,0.7593]
[1743143729012,5.18786,1927.6,1927.4,1.03623]
[1743143729211,10.37589,1927.6,1927.4,1.03623]
[1743143730289,5.18786,1927.6,1927.4,1.03623]
[1743143732901,5.18786,1927.6,1927.3,2.01]
[1743143733106,5.18819,1927.5,1927.3,2.01]
[1743143733928,5.18833,1927.4,1927.3,2.01]
[1743143734428,5.95273,1927.4,1927.3,2.01]
[1743143735405,5.18833,1927.4,1927.3,2.01]
[1743143735726,5.18793,1927.6,1927.3,5.2032]
[1743143735931,5.18793,1927.6,1927.3,6.02948222]
[1743143736418,5.18793,1927.6,1927.3,5.9776]
[1743143737429,10.37593,1927.6,1927.3,5.9776]
[1743143738232,5.18833,1927.4,1927.3,5.9776]
[1743143738532,5.18833,1927.4,1927.3,2.7844]
[1743143738731,5.18833,1927.4,1927.3,2.01]
[1743143739703,8.18833,1927.4,1927.3,2.01]
[1743143741417,5.18833,1927.4,1927.3,2.01]
[1743143749371,5.18785,1927.6,1927.4,0.7758]
[1743143749581,5.18806,1927.5,1927.4,1.05956802]
[1743143754342,5.18806,1927.5,1927.4,0.28376802]
[1743143754567,5.18833,1927.4,1927.3,2.01]
[1743143756383,5.18833,1927.4,1927.3,16.51]
[1743143756587,5.18833,1927.4,1927.3,2.01]
[1743143757689,5.18781,1927.6,1927.3,2.06188225]
[1743143757895,5.18781,1927.6,1927.4,0.7919]
[1743143758296,5.18781,1927.6,1927.5,14.5]
[1743143758486,5.18781,1927.6,1927.5,16.02919]
[1743143759209,5.18833,1927.4,1927.3,2.01]
[1743143759669,5.18833,1927.4,1927.3,16.51]
[1743143759870,5.18833,1927.4,1927.3,2.01]
[1743143760393,5.18833,1927.4,1927.3,16.51]
[1743143761494,7.73945534,1927.4,1927.3,2.01]
[1743143761695,9.55519434,1927.4,1927.3,2.01]
[1743143763609,10.10519434,1927.4,1927.3,2.01]
[1743143763778,13.10519434,1927.4,1927.3,2.01]
[1743143763980,5.18941,1927.0,1926.9,1e-05]
[1743143764185,9.59439934,1927.0,1926.9,1e-05]
[1743143765106,7.043274,1927.0,1926.9,1e-05]